fUST/lending_fUST_20250925
["ID","MTS","AMOUNT","RATE_DAILY","PERIOD"]
[387688653,1758810642798,-480.0,0.00019599,2]
[387688654,1758810642807,-480.0,0.00019599,2]
[387688655,1758810642817,-480.0,0.000196,2]
[387688656,1758810642827,-377.16724057,0.000196,2]
[387688657,1758810642837,-480.0,0.000196,2]
[387688658,1758810642848,-480.0,0.000196,2]
[387688659,1758810642857,-480.0,0.000196,2]
[387688660,1758810642868,-480.0,0.000196,2]
[387688661,1758810642878,-480.0,0.000196,2]
[387688662,1758810642887,-480.0,0.000196,2]
[387688663,1758810642897,-497.84069144,0.000196,2]
[387688664,1758810642907,-480.0,0.000196,2]
[387688665,1758810642917,-480.0,0.000196,2]
[387688666,1758810642926,-480.0,0.000196,2]
[387688667,1758810642936,-480.0,0.000196,2]
[387688668,1758810642947,-480.0,0.000196,2]
[387688669,1758810642957,-480.0,0.000196,2]
[387688670,1758810642967,-480.0,0.000196,2]
[387688671,1758810642977,-484.25770988,0.000196,2]
[387688672,1758810642987,-480.0,0.000196,2]
[387688673,1758810642996,-480.0,0.000196,2]
[387688674,1758810643006,-6407.92816435,0.00019619,2]
[387688675,1758810643016,-1301.92,0.00019624,2]
[387688676,1758810643026,-480.0,0.00019624,2]
[387688677,1758810643035,-480.0,0.00019624,2]
[387688678,1758810643045,-480.0,0.00019625,2]
[387688679,1758810643055,-480.0,0.00019625,2]
[387688680,1758810643065,-480.0,0.00019625,2]
[387688681,1758810643076,-480.0,0.00019625,2]
[387688682,1758810643086,-480.0,0.00019625,2]
[387688683,1758810643096,-150.0,0.00019804,2]
[387688684,1758810643106,-475.41570051,0.00019871,2]
[387688685,1758810643115,-480.0,0.00019871,2]
[387688686,1758810643125,-480.0,0.00019871,2]
[387688687,1758810643135,-480.0,0.00019871,2]
[387688688,1758810643144,-272.47196373,0.00019871,2]
[387688689,1758810643154,-571.62622827,0.00019871,2]
[387688690,1758810643163,-480.0,0.00019871,2]
[387688691,1758810643172,-480.0,0.00019871,2]
[387688692,1758810643181,-480.0,0.00019871,2]
[387688693,1758810643191,-480.0,0.00019872,2]
[387688694,1758810643201,-504.88176214,0.00019872,2]
[387688695,1758810643211,-480.0,0.00019872,2]
[387688696,1758810643221,-480.0,0.00019872,2]
[387688697,1758810643232,-480.0,0.00019872,2]
[387688698,1758810643241,-480.0,0.00019872,2]
[387688699,1758810643251,-480.0,0.00019872,2]
[387688700,1758810643260,-360.09994545,0.00019872,2]
[387688702,1758810643271,-152.73320551,0.00019872,2]
[387688703,1758810643280,-480.0,0.00019872,2]
[387688705,1758810643290,-480.0,0.00019872,2]
[387688707,1758810643299,-480.0,0.00019872,2]
[387688708,1758810643309,-480.0,0.00019872,2]
[387688709,1758810643319,-480.0,0.00019872,2]
[387688710,1758810643328,-480.0,0.00019872,2]
[387688711,1758810643339,-509.14,0.00019872,2]
[387688712,1758810643348,-480.0,0.00019872,2]
[387688713,1758810643358,-480.0,0.00019872,2]
[387688714,1758810643367,-480.0,0.00019872,2]
[387688715,1758810643377,-480.0,0.00019872,2]
[387688716,1758810643387,-480.0,0.00019872,2]
[387688717,1758810643396,-480.0,0.00019872,2]
[387688718,1758810643406,-480.0,0.00019872,2]
[387688719,1758810643415,-500.0,0.00019873,2]
[387688720,1758810643424,-500.0,0.00019873,2]
[387688721,1758810643434,-480.0,0.00019873,2]
[387688722,1758810643443,-240.7580798,0.00019873,2]
[387688723,1758810643454,-480.0,0.00019873,2]
[387688724,1758810643463,-591.13698994,0.00019873,2]
[387688725,1758810643473,-480.0,0.00019873,2]
[387688726,1758810643482,-480.0,0.00019873,2]
[387688727,1758810643492,-480.0,0.00019873,2]
[387688728,1758810643502,-480.0,0.00019873,2]
[387688729,1758810643511,-480.0,0.00019873,2]
[387688730,1758810643521,-480.0,0.00019873,2]
[387688731,1758810643531,-480.0,0.00019873,2]
[387688732,1758810643540,-480.0,0.00019873,2]
[387688733,1758810643550,-480.0,0.00019873,2]
[387688734,1758810643561,-480.0,0.00019873,2]
[387688735,1758810643571,-352.11445371,0.00019873,2]
[387688736,1758810643580,-480.0,0.00019873,2]
[387688737,1758810643590,-480.0,0.00019873,2]
[387688738,1758810643599,-429.09069367,0.00019873,2]
[387688739,1758810643609,-480.0,0.00019873,2]
[387688740,1758810643619,-156.89805978,0.00019873,2]
[387688741,1758810643629,-480.0,0.00019873,2]
[387688742,1758810643639,-472.02762299,0.00019873,2]
[387688743,1758810643648,-480.0,0.00019873,2]
[387688744,1758810643658,-480.0,0.00019873,2]
[387688745,1758810643667,-480.0,0.00019873,2]
[387688746,1758810643676,-480.0,0.00019873,2]
[387688747,1758810643685,-480.0,0.00019873,2]
[387688748,1758810643700,-480.0,0.00019873,2]
[387688749,1758810643711,-375.0745619,0.00019873,2]
[387688750,1758810643720,-480.0,0.00019873,2]
[387688751,1758810643729,-480.0,0.00019873,2]
[387688752,1758810643739,-480.0,0.00019873,2]
[387688753,1758810643748,-480.0,0.00019873,2]
[387688754,1758810643758,-480.0,0.00019873,2]
[387688755,1758810643768,-480.0,0.00019873,2]
[387688756,1758810643778,-480.0,0.00019873,2]
[387688757,1758810643788,-480.0,0.00019873,2]
[387688758,1758810643797,-480.0,0.00019873,2]
[387688759,1758810643807,-480.0,0.00019873,2]
[387688760,1758810643817,-480.0,0.00019873,2]
[387688761,1758810643827,-196.52495836,0.00019873,2]
[387688762,1758810643836,-480.0,0.00019873,2]
[387688763,1758810643845,-480.0,0.00019873,2]
[387688764,1758810643855,-480.0,0.00019873,2]
[387688765,1758810643865,-480.0,0.00019873,2]
[387688766,1758810643874,-480.0,0.00019873,2]
[387688767,1758810643884,-480.0,0.00019873,2]
[387688768,1758810643894,-480.0,0.00019873,2]
[387688769,1758810643903,-480.0,0.00019873,2]
[387688770,1758810643913,-480.0,0.00019873,2]
[387688771,1758810643923,-480.0,0.00019873,2]
[387688772,1758810643932,-621.79613561,0.00019873,2]
[387688773,1758810643942,-480.0,0.00019873,2]
[387688774,1758810643952,-480.0,0.00019873,2]
[387688775,1758810643961,-480.0,0.00019873,2]
[387688776,1758810643971,-480.0,0.00019873,2]
[387688777,1758810643981,-480.0,0.00019873,2]
[387688778,1758810643990,-480.0,0.00019873,2]
[387688779,1758810644000,-480.0,0.00019873,2]
[387688780,1758810644010,-480.0,0.00019873,2]
[387688781,1758810644019,-480.0,0.00019873,2]
[387688782,1758810644029,-480.0,0.00019873,2]
[387688783,1758810644039,-480.0,0.00019873,2]
[387688784,1758810644049,-480.0,0.00019873,2]
[387688785,1758810644059,-480.0,0.00019873,2]
[387688786,1758810644068,-480.0,0.00019873,2]
[387688787,1758810644078,-480.0,0.00019873,2]
[387688788,1758810644087,-480.0,0.00019873,2]
[387688789,1758810644098,-480.0,0.00019873,2]
[387688790,1758810644107,-480.0,0.00019873,2]
[387688791,1758810644117,-480.0,0.00019873,2]
[387688792,1758810644128,-480.0,0.00019873,2]
[387688793,1758810644138,-480.0,0.00019873,2]
[387688794,1758810644147,-522.68,0.00019873,2]
[387688795,1758810644157,-480.0,0.00019873,2]
[387688796,1758810644167,-480.0,0.00019873,2]
[387688797,1758810644176,-480.0,0.00019873,2]
[387688798,1758810644185,-480.0,0.00019873,2]
[387688799,1758810644194,-480.0,0.00019873,2]
[387688800,1758810644204,-480.0,0.00019873,2]
[387688801,1758810644213,-480.0,0.00019873,2]
[387688802,1758810644222,-480.0,0.00019873,2]
[387688803,1758810644233,-480.0,0.00019873,2]
[387688804,1758810644242,-508.36660631,0.00019873,2]
[387688805,1758810644252,-480.0,0.00019873,2]
[387688806,1758810644262,-480.0,0.00019873,2]
[387688807,1758810644271,-487.60117032,0.00019873,2]
[387688808,1758810644281,-465.23168341,0.00019873,2]
[387688809,1758810644291,-460.0,0.00019873,2]
[387688810,1758810644300,-489.70005109,0.00019873,2]
[387688811,1758810644380,-480.0,0.00019873,2]
[387688812,1758810644390,-480.0,0.00019873,2]
[387688813,1758810644399,-480.0,0.00019873,2]
[387688814,1758810644409,-480.0,0.00019873,2]
[387688815,1758810644418,-340.27229525,0.00019873,2]
[387688816,1758810644428,-480.0,0.00019873,2]
[387688817,1758810644438,-480.0,0.00019873,2]
[387688818,1758810644448,-480.0,0.00019873,2]
[387688819,1758810644459,-480.0,0.00019873,2]
[387688820,1758810644468,-248.50459044,0.00019873,2]
[387688821,1758810644478,-480.0,0.00019873,2]
[387688822,1758810644487,-480.0,0.00019873,2]
[387688823,1758810644497,-480.0,0.00019873,2]
[387688824,1758810644506,-480.0,0.00019873,2]
[387688825,1758810644515,-480.0,0.00019873,2]
[387688826,1758810644525,-480.0,0.00019873,2]
[387688827,1758810644535,-480.0,0.00019873,2]
[387688828,1758810644544,-582.48,0.00019873,2]
[387688829,1758810644554,-480.0,0.00019873,2]
[387688830,1758810644564,-471.33606406,0.00019873,2]
[387688831,1758810644573,-480.0,0.00019873,2]
[387688832,1758810644583,-480.0,0.00019873,2]
[387688833,1758810644593,-480.0,0.00019873,2]
[387688834,1758810644603,-480.0,0.00019873,2]
[387688835,1758810644612,-480.0,0.00019873,2]
[387688836,1758810644622,-480.0,0.00019873,2]
[387688837,1758810644631,-494.18546131,0.00019873,2]
[387688838,1758810644640,-480.0,0.00019874,2]
[387688839,1758810644650,-390.56940857,0.00019874,2]
[387688840,1758810644660,-480.0,0.00019874,2]
[387688841,1758810644669,-480.0,0.00019874,2]
[387688842,1758810644679,-480.0,0.00019874,2]
[387688843,1758810644689,-480.0,0.00019874,2]
[387688844,1758810644703,-480.0,0.00019874,2]
[387688845,1758810644714,-480.0,0.00019874,2]
[387688846,1758810644723,-480.0,0.00019874,2]
[387688847,1758810644733,-480.0,0.00019874,2]
[387688848,1758810644743,-480.0,0.00019874,2]
[387688849,1758810644752,-480.0,0.00019874,2]
[387688850,1758810644762,-480.0,0.00019874,2]
[387688851,1758810644773,-480.0,0.00019874,2]
[387688852,1758810644783,-1301.92,0.00019898,2]
[387688853,1758810644793,-480.0,0.00019898,2]
[387688854,1758810644803,-480.0,0.00019898,2]
[387688855,1758810644812,-480.0,0.00019899,2]
[387688856,1758810644822,-480.0,0.00019899,2]
[387688857,1758810644832,-480.0,0.00019899,2]
[387688858,1758810644842,-1217.18338782,0.000199,2]
[387688859,1758810644852,-514.68386253,0.00019921,2]
[387688860,1758810644861,-507.50046996,0.00019921,2]
[387688861,1758810644873,-1000.0,0.00019921,2]
[387688862,1758810644888,-500.0,0.00019921,2]
[387688863,1758810644898,-1007.36583507,0.00019921,2]
[387688864,1758810644908,-1000.0,0.00019921,2]
[387688865,1758810644918,-114035.25411212,0.00019988,2]
[387688866,1758810644928,-100000.0,0.0001999,2]
[387688867,1758810644938,-900.7399,0.0002,3]
[387688868,1758810644947,-160.0,0.00020014,2]
[387688869,1758810644957,-375.02781266,0.00020095,2]
[387688870,1758810644966,-391.19863178,0.00020121,2]
[387688871,1758810644976,-500.0,0.00020121,2]
[387688872,1758810644985,-500.0,0.00020121,2]
[387688873,1758810644995,-502.27942844,0.00020121,2]
[387688874,1758810645005,-1000.0,0.00020121,2]
[387688875,1758810645015,-1000.0,0.00020121,2]
[387688876,1758810645024,-480.0,0.00020145,2]
[387688877,1758810645034,-480.0,0.00020145,2]
[387688878,1758810645043,-480.0,0.00020145,2]
[387688879,1758810645053,-480.0,0.00020145,2]
[387688880,1758810645064,-480.0,0.00020146,2]
[387688881,1758810645074,-480.0,0.00020146,2]
[387688882,1758810645083,-546.62874828,0.00020146,2]
[387688883,1758810645093,-480.0,0.00020146,2]
[387688884,1758810645104,-480.0,0.00020146,2]
[387688885,1758810645114,-570.63998174,0.00020146,2]
[387688886,1758810645124,-480.0,0.00020146,2]
[387688887,1758810645134,-480.0,0.00020146,2]
[387688888,1758810645144,-480.0,0.00020146,2]
[387688889,1758810645153,-509.14,0.00020146,2]
[387688890,1758810645163,-480.0,0.00020146,2]
[387688891,1758810645172,-480.0,0.00020146,2]
[387688892,1758810645181,-480.0,0.00020146,2]
[387688893,1758810645191,-581.32,0.00020146,2]
[387688894,1758810645200,-480.0,0.00020146,2]
[387688895,1758810645212,-532.20971981,0.00020146,2]
[387688896,1758810645221,-480.0,0.00020146,2]
[387688897,1758810645230,-480.0,0.00020147,2]
[387688898,1758810645240,-446.39811111,0.00020147,2]
[387688899,1758810645251,-480.0,0.00020147,2]
[387688900,1758810645260,-480.0,0.00020147,2]
[387688901,1758810645270,-587.02524603,0.00020147,2]
[387688902,1758810645279,-480.0,0.00020147,2]
[387688903,1758810645289,-480.0,0.00020147,2]
[387688904,1758810645300,-480.0,0.00020147,2]
[387688905,1758810645309,-480.0,0.00020147,2]
[387688906,1758810645318,-480.0,0.00020147,2]
[387688908,1758810645328,-480.0,0.00020147,2]
[387688909,1758810645338,-480.0,0.00020147,2]
[387688910,1758810645349,-480.0,0.00020147,2]
[387688911,1758810645359,-480.0,0.00020147,2]
[387688912,1758810645368,-480.0,0.00020147,2]
[387688913,1758810645377,-480.0,0.00020147,2]
[387688914,1758810645389,-480.0,0.00020147,2]
[387688915,1758810645398,-480.0,0.00020147,2]
[387688916,1758810645407,-480.0,0.00020147,2]
[387688918,1758810645417,-480.0,0.00020147,2]
[387688919,1758810645426,-480.0,0.00020147,2]
[387688920,1758810645435,-480.0,0.00020147,2]
[387688922,1758810645445,-177.28620908,0.00020147,2]
[387688924,1758810645455,-480.0,0.00020147,2]
[387688925,1758810645465,-480.0,0.00020147,2]
[387688926,1758810645474,-480.0,0.00020147,2]
[387688928,1758810645483,-208.86633553,0.00020147,2]
[387688930,1758810645493,-480.0,0.00020147,2]
[387688931,1758810645502,-480.0,0.00020147,2]
[387688932,1758810645512,-150.75432975,0.00020147,2]
[387688933,1758810645522,-480.0,0.00020147,2]
[387688934,1758810645531,-480.0,0.00020147,2]
[387688935,1758810645540,-480.0,0.00020147,2]
[387688936,1758810645551,-480.0,0.00020147,2]
[387688937,1758810645562,-314.27,0.00020147,2]
[387688938,1758810645571,-480.0,0.00020147,2]
[387688939,1758810645582,-480.0,0.00020147,2]
[387688940,1758810645593,-480.0,0.00020147,2]
[387688941,1758810645603,-480.0,0.00020147,2]
[387688942,1758810645613,-453.96340861,0.00020147,2]
[387688943,1758810645623,-480.0,0.00020147,2]
[387688944,1758810645633,-480.0,0.00020147,2]
[387688945,1758810645642,-480.0,0.00020147,2]
[387688946,1758810645651,-480.0,0.00020147,2]
[387688947,1758810645661,-522.68,0.00020147,2]
[387688949,1758810645670,-480.0,0.00020147,2]
[387688950,1758810645679,-480.0,0.00020147,2]
[387688951,1758810645689,-480.0,0.00020147,2]
[387688952,1758810645702,-480.0,0.00020147,2]
[387688953,1758810645713,-474.93872619,0.00020147,2]
[387688954,1758810645722,-480.0,0.00020147,2]
[387688955,1758810645732,-607.13081962,0.00020147,2]
[387688956,1758810645742,-480.0,0.00020147,2]
[387688957,1758810645752,-540.88969776,0.00020147,2]
[387688958,1758810645762,-480.0,0.00020147,2]
[387688959,1758810645773,-480.0,0.00020147,2]
[387688960,1758810645783,-480.0,0.00020147,2]
[387688961,1758810645792,-480.0,0.00020147,2]
[387688962,1758810645802,-480.0,0.00020147,2]
[387688963,1758810645811,-480.0,0.00020147,2]
[387688964,1758810645821,-480.0,0.00020147,2]
[387688966,1758810645831,-582.48,0.00020147,2]
[387688968,1758810645840,-480.0,0.00020147,2]
[387688970,1758810645850,-480.0,0.00020147,2]
[387688972,1758810645859,-480.0,0.00020147,2]
[387688974,1758810645869,-480.0,0.00020147,2]
[387688976,1758810645878,-480.0,0.00020147,2]
[387688977,1758810645888,-480.0,0.00020148,2]
[387688978,1758810645897,-480.0,0.00020148,2]
[387688979,1758810645907,-480.0,0.00020148,2]
[387688980,1758810645916,-480.0,0.00020148,2]
[387688981,1758810645926,-480.0,0.00020148,2]
[387688982,1758810645936,-480.0,0.00020148,2]
[387688983,1758810645946,-480.0,0.00020148,2]
[387688984,1758810645956,-480.0,0.00020148,2]
[387688985,1758810645966,-480.0,0.00020148,2]
[387688986,1758810645976,-1301.92,0.00020172,2]
[387688987,1758810645986,-480.0,0.00020172,2]
[387688988,1758810645995,-480.0,0.00020172,2]
[387688990,1758810646005,-480.0,0.00020173,2]
[387688992,1758810646014,-480.0,0.00020173,2]
[387688993,1758810646025,-9806.11693039,0.000202,2]
[387688998,1758810646099,-1116.93175621,0.00020396,2]
[387689000,1758810646109,-480.0,0.00020419,2]
[387689001,1758810646119,-480.0,0.00020419,2]
[387689002,1758810646129,-480.0,0.00020419,2]
[387689003,1758810646139,-480.0,0.00020419,2]
[387689004,1758810646148,-480.0,0.0002042,2]
[387689005,1758810646158,-480.0,0.0002042,2]
[387689006,1758810646168,-480.0,0.0002042,2]
[387689007,1758810646178,-387.27137735,0.0002042,2]
[387689008,1758810646191,-442.92,0.0002042,2]
[387689009,1758810646202,-509.14,0.0002042,2]
[387689010,1758810646214,-466.6,0.0002042,2]
[387689011,1758810646224,-480.0,0.0002042,2]
[387689012,1758810646233,-480.0,0.0002042,2]
[387689013,1758810646243,-480.0,0.0002042,2]
[387689014,1758810646253,-480.0,0.0002042,2]
[387689015,1758810646262,-528.030366,0.00020421,2]
[387689016,1758810646272,-906.28539915,0.00020421,2]
[387689017,1758810646282,-480.0,0.00020421,2]
[387689018,1758810646292,-480.0,0.00020421,2]
[387689019,1758810646301,-460.16360116,0.00020421,2]
[387689020,1758810646311,-485.71689908,0.00020421,2]
[387689021,1758810646320,-582.95871262,0.00020421,2]
[387689022,1758810646330,-480.0,0.00020421,2]
[387689023,1758810646339,-487.82382391,0.00020421,2]
[387689024,1758810646349,-480.0,0.00020421,2]
[387689025,1758810646358,-552.91187239,0.00020421,2]
[387689026,1758810646368,-312.49189763,0.00020421,2]
[387689027,1758810646377,-467.62,0.00020421,2]
[387689028,1758810646387,-480.0,0.00020421,2]
[387689029,1758810646396,-480.0,0.00020421,2]
[387689030,1758810646405,-480.0,0.00020421,2]
[387689031,1758810646415,-480.0,0.00020421,2]
[387689032,1758810646425,-428.66184384,0.00020421,2]
[387689033,1758810646434,-480.0,0.00020421,2]
[387689034,1758810646444,-424.30311923,0.00020421,2]
[387689035,1758810646453,-299.6953354,0.00020421,2]
[387689036,1758810646463,-489.72366552,0.00020421,2]
[387689037,1758810646472,-480.0,0.00020421,2]
[387689038,1758810646482,-480.0,0.00020421,2]
[387689039,1758810646491,-480.0,0.00020421,2]
[387689040,1758810646501,-480.0,0.00020421,2]
[387689041,1758810646511,-480.0,0.00020421,2]
[387689042,1758810646520,-480.0,0.00020421,2]
[387689043,1758810646530,-522.68,0.00020421,2]
[387689044,1758810646540,-351.1931403,0.00020421,2]
[387689045,1758810646550,-480.0,0.00020421,2]
[387689046,1758810646560,-480.0,0.00020421,2]
[387689047,1758810646570,-295.42441304,0.00020421,2]
[387689048,1758810646579,-240.80005109,0.00020421,2]
[387689049,1758810646589,-480.0,0.00020421,2]
[387689050,1758810646598,-480.0,0.00020421,2]
[387689051,1758810646607,-480.0,0.00020421,2]
[387689052,1758810646617,-480.0,0.00020421,2]
[387689053,1758810646627,-480.0,0.00020421,2]
[387689054,1758810646637,-582.48,0.00020421,2]
[387689055,1758810646646,-340.20104849,0.00020421,2]
[387689056,1758810646656,-480.0,0.00020421,2]
[387689057,1758810646667,-350.16,0.00020421,2]
[387689058,1758810646677,-480.0,0.00020422,2]
[387689059,1758810646687,-480.0,0.00020422,2]
[387689060,1758810646699,-480.0,0.00020422,2]
[387689061,1758810646709,-333.70796609,0.00020422,2]
[387689062,1758810646719,-480.0,0.00020422,2]
[387689063,1758810646728,-480.0,0.00020422,2]
[387689064,1758810646738,-480.0,0.00020422,2]
[387689065,1758810646748,-1301.92,0.00020446,2]
[387689066,1758810646758,-480.0,0.00020446,2]
[387689067,1758810646768,-480.0,0.00020446,2]
[387689068,1758810646778,-534.76575564,0.00020447,2]
[387689069,1758810646787,-480.0,0.00020447,2]
[387689070,1758810646797,-260.0,0.00020562,2]
[387689071,1758810646807,-20626.81688817,0.00020627,3]
[387689072,1758810646818,-1500.0,0.00020668,2]
[387689073,1758810646827,-480.0,0.00020693,2]
[387689074,1758810646837,-380.7640216,0.00020693,2]
[387689075,1758810646847,-480.0,0.00020693,2]
[387689076,1758810646857,-480.0,0.00020694,2]
[387689077,1758810646867,-480.0,0.00020694,2]
[387689078,1758810646876,-480.0,0.00020694,2]
[387689079,1758810646885,-509.14,0.00020694,2]
[387689080,1758810646895,-480.0,0.00020694,2]
[387689081,1758810646904,-480.0,0.00020694,2]
[387689082,1758810646914,-480.0,0.00020694,2]
[387689083,1758810646923,-435.7356876,0.00020695,2]
[387689084,1758810646932,-480.0,0.00020695,2]
[387689085,1758810646942,-480.0,0.00020695,2]
[387689086,1758810646951,-480.0,0.00020695,2]
[387689087,1758810646962,-480.0,0.00020695,2]
[387689088,1758810646972,-480.0,0.00020695,2]
[387689089,1758810646981,-481.20154404,0.00020695,2]
[387689090,1758810646991,-480.0,0.00020695,2]
[387689091,1758810647000,-476.02460935,0.00020695,2]
[387689092,1758810647009,-522.68,0.00020695,2]
[387689093,1758810647019,-480.0,0.00020695,2]
[387689094,1758810647028,-480.0,0.00020695,2]
[387689095,1758810647038,-480.0,0.00020695,2]
[387689096,1758810647047,-480.0,0.00020695,2]
[387689097,1758810647057,-480.0,0.00020695,2]
[387689098,1758810647066,-480.0,0.00020695,2]
[387689099,1758810647076,-582.48,0.00020695,2]
[387689100,1758810647086,-480.0,0.00020695,2]
[387689101,1758810647095,-480.0,0.00020696,2]
[387689102,1758810647105,-480.0,0.00020696,2]
[387689103,1758810647115,-480.0,0.00020696,2]
[387689104,1758810647125,-772.56,0.00020712,3]
[387689105,1758810647134,-386.28,0.00020712,3]
[387689106,1758810647144,-1301.92,0.0002072,2]
[387689107,1758810647153,-480.0,0.0002072,2]
[387689108,1758810647163,-480.0,0.0002072,2]
[387689109,1758810647173,-150.0,0.00020747,2]
[387689110,1758810647182,-480.0,0.00020967,2]
[387689111,1758810647192,-480.0,0.00020967,2]
[387689112,1758810647203,-480.0,0.00020968,2]
[387689113,1758810647213,-358.95,0.00020968,2]
[387689114,1758810647223,-480.0,0.00020968,2]
[387689115,1758810647233,-509.14,0.00020968,2]
[387689116,1758810647243,-480.0,0.00020968,2]
[387689117,1758810647253,-171.01,0.00020968,2]
[387689118,1758810647263,-480.0,0.00020968,2]
[387689119,1758810647273,-480.0,0.00020969,2]
[387689120,1758810647283,-480.0,0.00020969,2]
[387689121,1758810647292,-480.0,0.00020969,2]
[387689122,1758810647302,-480.0,0.00020969,2]
[387689123,1758810647312,-522.68,0.00020969,2]
[387689124,1758810647321,-480.0,0.00020969,2]
[387689125,1758810647331,-480.0,0.00020969,2]
[387689126,1758810647340,-480.0,0.00020969,2]
[387689127,1758810647350,-480.0,0.00020969,2]
[387689128,1758810647360,-480.0,0.00020969,2]
[387689129,1758810647369,-582.48,0.00020969,2]
[387689130,1758810647379,-480.0,0.00020969,2]
[387689131,1758810647388,-480.0,0.0002097,2]
[387689132,1758810647397,-480.0,0.0002097,2]
[387689133,1758810647407,-1217.18338762,0.00020972,2]
[387689134,1758810647417,-1301.92,0.00020994,2]
[387689135,1758810647427,-284.51,0.00020994,2]
[387689136,1758810647436,-480.0,0.00020994,2]
[387689137,1758810647446,-10000.0,0.00021,5]
[387689138,1758810647457,-688.67808718,0.00021,10]
[387689139,1758810647466,-1680.0,0.00021053,2]
[387689140,1758810647476,-420.0,0.00021053,2]
[387689141,1758810647486,-360.0,0.0002111,2]
[387689142,1758810647496,-176.55634929,0.00021134,2]
[387689143,1758810647506,-1680.0,0.00021154,2]
[387689144,1758810647515,-2000.0,0.00021216,2]
[387689145,1758810647527,-480.0,0.00021241,2]
[387689146,1758810647536,-605.22560838,0.00021242,2]
[387689147,1758810647553,-480.0,0.00021242,2]
[387689148,1758810647568,-509.14,0.00021242,2]
[387689149,1758810647579,-480.0,0.00021242,2]
[387689150,1758810647589,-480.0,0.00021242,2]
[387689151,1758810647599,-510.06,0.00021243,2]
[387689152,1758810647608,-615.60095132,0.00021243,2]
[387689153,1758810647716,-522.68,0.00021243,2]
[387689154,1758810647726,-480.0,0.00021243,2]
[387689155,1758810647736,-480.0,0.00021243,2]
[387689156,1758810647747,-480.0,0.00021243,2]
[387689157,1758810647756,-480.0,0.00021243,2]
[387689158,1758810647766,-480.0,0.00021243,2]
[387689159,1758810647777,-582.48,0.00021243,2]
[387689160,1758810647787,-480.0,0.00021243,2]
[387689161,1758810647797,-480.0,0.00021244,2]
[387689162,1758810647806,-480.0,0.00021244,2]
[387689163,1758810647816,-1301.92,0.00021268,2]
[387689164,1758810647826,-480.0,0.00021268,2]
[387689165,1758810647836,-480.0,0.00021515,2]
[387689166,1758810647846,-480.0,0.00021516,2]
[387689167,1758810647856,-509.14,0.00021516,2]
[387689168,1758810647866,-480.0,0.00021516,2]
[387689169,1758810647875,-288.64,0.00021516,2]
[387689170,1758810647885,-522.68,0.00021517,2]
[387689171,1758810647895,-480.0,0.00021517,2]
[387689172,1758810647905,-325.83313614,0.00021517,2]
[387689173,1758810647915,-480.0,0.00021517,2]
[387689174,1758810647925,-284.97,0.00021517,2]
[387689175,1758810647935,-582.48,0.00021517,2]